Cogmind - Beta 13 X1 @@@ ROGUE MODE // 2023.08.18 @ 17:07:35 Player: VR-DUX Result: Destroyed by G-34 Mercenary with Small Laser Performance ------------- Evolutions (0) 0 Regions Visited (1) 200 Robots Destroyed (29) 145 Value Destroyed (516) 516 Prototype IDs (0) 0 Alien Tech Used (0) 0 Bonus (24) 24 TOTAL SCORE: 885 Bonus ------- High Alert Combat Kills 24 Cogmind --------- Core Integrity 0/250 Matter 285/300 Energy 125/125 System Corruption 0% Temperature Cool (6) Movement Treading (240) Ox1 Location -10/Materials Parts ------- > --- POWER (1) -------- Light Ion Engine > --- PROPULSION (2) --- Light Treads > --- UTILITY (2) ------ Large Storage Unit Signal Interpreter > --- WEAPON (2) ------- Light Assault Rifle Light Assault Rifle > --- INVENTORY (15) --- Light Ion Engine Medium Storage Unit Large Storage Unit Huge Storage Unit Structural Scanner Signal Interpreter Light Armor Plating Hacking Suite Particle Gun Peak State ------------ > --- POWER ------------ Ion Engine > --- PROPULSION ------- Light Treads Light Treads > --- UTILITY ---------- Large Storage Unit Structural Scanner > --- WEAPON ----------- EM Pulse Gun Light Assault Rifle > --- INVENTORY -------- Light Ion Engine Light Ion Engine Medium Storage Unit Large Storage Unit Huge Storage Unit Signal Interpreter Hacking Suite Light Assault Rifle [Rating: 8] Favorites ----------- Power Ion Engine Engine Ion Engine Propulsion Light Treads Treads Light Treads Leg Aluminum Leg Utility Large Storage Unit Device Structural Scanner Storage Large Storage Unit Processor Signal Interpreter Weapon Light Assault Rifle Energy Gun EM Pulse Gun Ballistic Gun Light Assault Rifle Build | -11 -10 ------- Run | Jun Mat Slots Evolved . | . . Power . | . . Propulsion . | . . Utility . | . . Weapon . | . . Parts Attached 10 | 1 9 Power 1 | . 1 Engine 1 | . 1 Core . | . . Reactor . | . . Propulsion 2 | . 2 Treads 2 | . 2 Leg . | . . Wheel . | . . Hover . | . . Flight . | . . Utility 4 | 1 3 Device 2 | 1 1 Storage 1 | . 1 Processor 1 | . 1 Hackware . | . . Protection . | . . Artifact . | . . Weapon 3 | . 3 Energy Gun . | . . Energy Cannon . | . . Ballistic Gun 3 | . 3 Ballistic Cannon . | . . Launcher . | . . Special Weapon . | . . Impact Weapon . | . . Slashing Weapon . | . . Piercing Weapon . | . . Special Melee Weapon . | . . Unidentified Prototypes . | . . Parts Lost 3 | . 3 Power . | . . Propulsion 1 | . 1 Utility . | . . Weapon 2 | . 2 Highest Loss Streak 2 | . 2 To Critical Strikes . | . . Average Slot Usage (%) 99 | . 99 Engine 14 | . 14 Treads 21 | . 21 Leg 6 | . 6 Device 7 | . 7 Storage 14 | . 14 Processor 6 | . 6 Energy Gun 10 | . 10 Ballistic Gun 16 | . 16 Naked Turns . | . . Heaviest Build 29 | 14 29 Greatest Support 40 | 20 40 Greatest Overweight (x) . | . . Average Overweight (x) . | . . Largest Inventory Capacity 15 | 8 15 Average Capacity 12 | 8 13 Most Carried 11 | 5 11 Average Carried 7 | 4 7 Final Capacity 15 | 8 15 Final Carried 9 | 4 9 Class Distribution -------------------- 100% | Mutant Dominant Class ---------------- Mutant | -10/Materials Resources | -11 -10 ----------- Run | Jun Mat Matter Collected 401 | 203 198 Remotely . | . . Salvage Created 1091 | 95 996 Parts 74 | 8 66 Haulers Intercepted 1 | . 1 Recyclers Shooed 4 | 1 3 Parts Field Recycled . | . . Retrieved Matter . | . . Parts Self-Destructed . | . . Prevented . | . . Kills | -11 -10 ------- Run | Jun Mat Combat Hostiles Destroyed 15 | . 15 Guns 7 | . 7 AOE 7 | . 7 Classes Destroyed 8 | 2 6 Builder 4 | . 4 Tunneler 1 | 1 . Hauler 1 | . 1 Recycler 4 | 1 3 Operator 1 | . 1 Watcher 3 | . 3 Swarmer 6 | . 6 Grunt 9 | . 9 Best Kill Streak 5 | 2 5 Combat Bots Only 3 | . 3 Max Kills in Single Turn 2 | 1 2 Gunslinging . | . . Exploded 2 | . 2 Melee . | . . Uniques/NPCs Destroyed . | . . Combat | -11 -10 -------- Run | Jun Mat Damage Taken 892 | . 892 Core 261 | . 261 Absorbed by Shields . | . . Core Remaining (%) 100 | 100 . Volleys Fired 147 | 3 144 Largest 2 | 2 2 Hottest 60 | 60 40 Shots Fired 164 | 6 158 Gun 164 | 6 158 Cannon . | . . Launcher . | . . Special . | . . Kinetic 110 | 3 107 Thermal . | . . Explosive . | . . Electromagnetic 54 | 3 51 Robot Hit Streak 14 | 5 14 Robot Miss Streak 4 | . 4 Penetration Max . | . . Secondary Targets . | . . Shots Hit Robots 98 | 5 93 Core Hits 46 | 3 43 Critical Kills . | . . Critical Parts Destroyed 1 | . 1 Critical Strikes 1 | . 1 Destroy 1 | . 1 Melee Attacks . | . . Impact . | . . Slashing . | . . Piercing . | . . Sneak Attacks . | . . Combat Hostiles . | . . Follow-up Attacks . | . . Damage Inflicted 1385 | 57 1328 Guns 1060 | 57 1003 Cannons . | . . Explosions 325 | . 325 Melee . | . . Ramming . | . . Kinetic 515 | 16 499 Thermal 325 | . 325 Explosive . | . . Electromagnetic 545 | 41 504 Impact . | . . Slashing . | . . Piercing . | . . Highest Corruption . | . . Average Corruption . | . . Corruption Purged . | . . Corruption Blocked . | . . Overload Shots . | . . Overflow Damage . | . . Projectiles . | . . Explosions . | . . Melee . | . . Knockbacks . | . . Impact . | . . Kinetic . | . . Secondary . | . . Self-Inflicted Damage 85 | . 85 Shots 3 | . 3 Rammed . | . . Targets Rammed . | . . Kicked . | . . Crushed . | . . Highest Temperature 42 | 20 42 Average Temperature 15 | 15 15 Received Heat Transfer 414 | . 414 Siege Activations . | . . Robots Corrupted 1 | . 1 Combat Hostiles 1 | . 1 Parts Fried 1 | . 1 Impact Corruptions . | . . Robots Melted . | . . Combat Hostiles . | . . Parts Melted 2 | . 2 Heat Transferred 550 | . 550 Parts Sabotaged . | . . Parts Stolen . | . . Parts Stripped . | . . Power Chain Reactions 6 | . 6 Missiles Intercepted . | . . Alert | -11 -10 ------- Run | Jun Mat Peak Influence 478 | 10 478 Initial 6 | . 6 Average 206 | 7 210 Maximum Alert Level 2 | . 2 Low Security (%) 57 | 100 56 Level 1 39 | . 40 Level 2 2 | . 2 Level 3 . | . . Level 4 . | . . Level 5 . | . . High Security . | . . Max Security . | . . Squads Dispatched 4 | . 4 Investigation 3 | . 3 Extermination . | . . Reinforcement 1 | . 1 Assault . | . . Garrison . | . . Intercept . | . . Searches Triggered . | . . Construction Impeded . | . . Haulers Reinforced . | . . Active Scanning Responses . | . . Cargo Convoy Interrupts . | . . Stealth | -11 -10 --------- Run | Jun Mat Distress Signals 2 | . 2 Communications Jammed . | . . Distress Signals . | . . Times Spotted 28 | . 28 Peak Tracking Total 5 | . 5 Tactical Retreats . | . . Traps | -11 -10 ------- Run | Jun Mat Traps Triggered 2 | . 2 Indirectly . | . . Trap Hack Attempts . | . . Triggered . | . . Disarmed . | . . Reprogrammed . | . . Reused . | . . Traps Extracted . | . . Installed . | . . Triggered . | . . Machines | -11 -10 ---------- Run | Jun Mat Machines Disabled 2 | . 2 Max in Single Turn 1 | . 1 Machines Repaired . | . . Machines Sabotaged . | . . Overloaded Fab Kills . | . . Hacking | -11 -10 --------- Run | Jun Mat Machines Accessed 10 | . 10 Terminals 7 | . 7 Fabricators . | . . Repair Stations 1 | . 1 Recycling Units 2 | . 2 Scanalyzers . | . . Garrison Access . | . . Total Hacks 17 | . 17 Successful 9 | . 9 Failed 8 | . 8 Catastrophic 1 | . 1 Database Lockouts . | . . Manual 16 | . 16 Terminals 13 | . 13 Fabricators . | . . Repair Stations 2 | . 2 Recycling Units 2 | . 2 Scanalyzers . | . . Garrison Access . | . . Terminal Hacks 6 | . 6 Robot Analysis 5 | . 5 Zone Layout 1 | . 1 Fabricator Hacks . | . . Repair Station Hacks . | . . Recycling Unit Hacks 2 | . 2 Retrieve Components 2 | . 2 Scanalyzer . | . . Garrison Access Hacks . | . . Unauthorized Hacks 1 | . 1 Terminals 1 | . 1 Botnet 1 | . 1 Fabricators . | . . Repair Stations . | . . Recycling Units . | . . Scanalyzers . | . . Garrison Access . | . . Data Cores Recovered 1 | . 1 Used . | . . Hacking Detections 7 | . 7 Full Trace Events 1 | . 1 Feedback Events . | . . Feedback Blocked . | . . Robot Schematics Acquired . | . . Robots Built . | . . Authchips . | . . Time . | . . Total Robot Build Rating . | . . Part Schematics Acquired . | . . Parts Built . | . . Authchips . | . . Time . | . . Total Part Build Rating . | . . Parts Repaired . | . . Time . | . . Parts Recycled . | . . Recycled Matter . | . . Retrieved Matter . | . . Retrieved Components 4 | . 4 Parts Scanalyzed . | . . Part Schematics Acquired . | . . Parts Damaged . | . . Bothacking | -11 -10 ------------ Run | Jun Mat Used RIF Installer . | . . Robots Hacked . | . . Non-combat . | . . Combat . | . . Robot Hacks Applied . | . . Relay Couplers Released . | . . Fabnet Peak Effective % . | . . Robots Rewired . | . . Allies Hacked . | . . Hacks Repelled . | . . Allies | -11 -10 -------- Run | Jun Mat Total Allies . | . . Largest Group . | . . Highest-Rated Group . | . . Highest-Rated Ally . | . . Total Orders . | . . Ally Attacks . | . . Total Damage . | . . Kills . | . . Allies Corrupted . | . . Allies Melted . | . . Intel | -11 -10 ------- Run | Jun Mat Robot Analysis Total 5 | . 5 Derelict Logs Recovered . | . . Drone Launches . | . . Drone Recoveries . | . . Exploration | -11 -10 ------------- Run | Jun Mat Turns Passed 1449 | 28 1421 Spaces Moved 739 | 15 724 Core . | . . Treads 590 | . 590 Legs 149 | 15 134 Wheels . | . . Hover . | . . Flight . | . . Fastest Speed 120 | 120 120 Average Speed 151 | 120 152 Slowest Speed 160 | 120 160 Overloaded Moves . | . . Propulsion Burnouts . | . . Robots Hopped . | . . Cave-ins Triggered . | . . Exploration Rate (%) 49 | 3 95 Regions Visited 1 Branch Regions . Pre-discovered Areas . | . . Known Exits Taken . | . . Unknown Exits Taken 1 | 1 . Scrap Searched . | . . Spaces Dug . | . . Terrain Destroyed 14 | . 14 Melee . | . . Projectile . | . . AOE 14 | . 14 Terrain Rammed . | . . Walls Destroyed . | . . Machines Disabled . | . . Actions | -11 -10 --------- Run | Jun Mat Total 924 | 20 904 Wait 11 | . 11 Move 738 | 14 724 Hop . | . . Pick Up 10 | . 10 Fast Attach 3 | 1 2 Attach 5 | . 5 Detach . | . . Swap 2 | . 2 Drop 8 | 2 6 Fire 147 | 3 144 Melee . | . . Ram . | . . Kick . | . . Crush . | . . Escape Stasis . | . . Rewire . | . . Trap . | . . Miscellaneous . | . . Route ------- -11/Junkyard -10/Materials (discovered 4 exits: [*Mat x3] / *Min) History --------- Turn | Location | Event 8 | -11/Junkyard | Discovered new exit (range 3) 29 | -11/Junkyard | Entered Materials 247 | -10/Materials | Discovered new exit (range 15) 317 | -10/Materials | Build established: Mutant 400 | -10/Materials | Core integrity fell below 50% 758 | -10/Materials | Discovered new exit (range 12) 775 | -10/Materials | Identified exit to Mines 1002 | -10/Materials | Discovered new exit (range 5) 1231 | -10/Materials | Discovered new exit (range 3) 1387 | -10/Materials | Core integrity fell below 20% 1450 | -10/Materials | Destroyed by G-34 Mercenary with Small Laser Last Messages --------------- 01130_ G-34 Mercenary misfires. 01131_ G-34 Mercenary destroyed. 01136_ Acquired Particle Gun. 01137_ Acquired 36 matter. 01158_ Acquired Lgt. Assault Rifle. 01160_ Dropped Ion Engine. 01204_ Connecting with Terminal... 01231_ EXIT=FOUND 01253_ Acquired 22 matter. 01277_ W-16 Scout destroyed. 01296_ Acquired 6 matter. 01349_ Connecting with Repair Station... 01354_ T-07 Excavator is excavating. 01358_ Triggered Alarm Trap. 01358_ An alarm sounds. 01358_ ALERT: Alarm triggered, dispatching investigation squad. 01361_ ALERT: Hostiles spotted, dispatching reinforcements to Terminal M002. 01386_ U-05 Engineer lays Concrete. 01410_ K-01 Serf collects debris. 01433_ Lgt. Treads destroyed. Map ----- +----------------------------------------------------+ | # # """ # # # #?######## # | | # # # # % # #??# + "" | | # ######## # # #??# # # """ | | + # #! #??####### #| R" | | ### ^ # # #????????# # """ | | ??# ^ + #?? ??????????# #= | | ### ^^ # #??##+############# ####### | | ^^ # #### = #?????? | | #############% # + =%* #?????? | | ????????????# # ###########+####### #?????? | | ????????????# # ## #?????# #?????? | | ????????????#% ######## #?????# #?????? | | ?#####??????+ ##?????# #?????# #?????? | | #??????# ##?????# #?????# #?????? | | #??????# ##?????# ####### #?????? | | #??????# %##?????# # #####?? | | ###????# ################### #?? | | # # """"" #?? | | # """ # ""T" #?? | | ! #[ """ + ^ % ###+###### | | ! # """ # ######%^^ # # | | % # # ##?### ^ " #"" # | | # # #??#"" """"""""" #"" # | | ########%###??#"Y [ """ """ #"T """ # | | ############# ##???#"" gm #"" """ # | | % ###??###= @ g #"" """ # | | ###????# # """ # | | ############"T"#"T"######## """ # | | ##+########## ##########?#"""#"""# ## ??# | | #######%## ##?#########[ #######???? | | """"" #????##%## ""##?????????# #?????????? | | """"" #???### ## ""##?????????# ! #?????????? | | """"" #???### ## T"##?????????# *!#?????????? | | """"" #???## # ""##??######## #?######### | | """"" #???## # ""############ ! ########### | | ? ? #???## # ###### ##+####### ## | | ###### + """ # = ! ## | | ############ # """ # ## | | ## # # """ # ## | | ## # # # ## ##+####### ## | | + # ######## ######## #### ### | | ## # + # """ #### ### | | ## ! # #" """ # """ #### ##? | | ## !% =+ #T """ # """ #### ##? | | ## ! # %############" """ # #### ##? | | ## =#% ############ # ### ## | | ############!%=###???????## ######### # | | ==*=!!*=###???????################# # | | *%=%[ %[###???????##########?????## > # | | ![[=% ##???????????????????????## # | +----------------------------------------------------+ Best States ------------- Heat Dissipation 25 Energy Generation 10 Energy Capacity 250 Matter Stores 300 Matter Capacity 300 Sight Range 16 Terrain Scan Density 10 Evasion (%) 55 Recoil Reduction 2 Item Schematics ----------------- None Robot Schematics ------------------ None Fabricated ------------ Nothing Alien Tech Used ----------------- None Achievements -------------- None Challenges ------------ None Game ------ Seed RefineryMakeshiftInverter Manual? 0 Play Time 00:16:43 Cumulative 53.1 hours Start 2023.08.18 @ 16:45:48 End 2023.08.18 @ 17:07:35 Sessions 1 Manual Loads 0 Difficulty Rogue Special Mode None Game No. 32 Rogue 32 Adventurer 0 Explorer 0 Win Type - Total 0 Types 0/0/0/0/0/0/0/0/0 Lore% 31 Gallery% 27 Achievement% 35 Wizard Run 0 Options --------- ASCII 0 Keyboard 0 Movement Mouse Keybinds 0 Fullscreen 1 Font 16/SmallcapsGlow Map View 84x54 Tactical HUD 1 Map Filters NONE Filters NONE Steam 1 RUN: 1db953a3-baae-4213-88ab-367f4695db9e